fUSD/lending_fUSD_20250616
["ID","MTS","AMOUNT","RATE_DAILY","PERIOD"]
[366173721,1750098169952,-490.0,0.00015721,2]
[366173722,1750098169977,-490.0,0.00015721,2]
[366173723,1750098170004,-4231.22,0.00015721,2]
[366173724,1750098170031,-718.89,0.00015721,2]
[366173725,1750098170056,-490.0,0.00015721,2]
[366173726,1750098170080,-490.0,0.00015721,2]
[366173727,1750098170105,-490.0,0.00015721,2]
[366173728,1750098170131,-8270.2,0.00015721,2]
[366173729,1750098170155,-490.0,0.00015721,2]
[366173730,1750098170180,-1569.85,0.00015721,2]
[366173731,1750098170204,-490.0,0.00015721,2]
[366173732,1750098170229,-1800.25,0.00015721,2]
[366173733,1750098170254,-490.0,0.00015721,2]
[366173734,1750098170280,-490.0,0.00015721,2]
[366173735,1750098170303,-542.02,0.00015721,2]
[366173736,1750098170327,-490.0,0.00015721,2]
[366173737,1750098170350,-1225.57,0.00015721,2]
[366173738,1750098170378,-3009.52,0.00015721,2]
[366173739,1750098170403,-1140.36,0.00015721,2]
[366173740,1750098170427,-490.0,0.00015721,2]
[366173741,1750098170450,-490.0,0.00015721,2]
[366173742,1750098170473,-519.65291934,0.00015721,2]
[366173743,1750098170495,-490.0,0.00015721,2]
[366173744,1750098170520,-490.0,0.00015721,2]
[366173745,1750098170548,-1374.71,0.00015721,2]
[366173746,1750098170571,-1648.58,0.00015721,2]
[366173747,1750098170595,-490.0,0.00015721,2]
[366173748,1750098170618,-739.59,0.00015721,2]
[366173749,1750098170643,-1486.43,0.00015721,2]
[366173750,1750098170669,-978.08,0.00015721,2]
[366173751,1750098170698,-490.0,0.00015721,2]
[366173752,1750098170727,-15405.73,0.00015721,2]
[366173753,1750098170753,-1642.1,0.00015721,2]
[366173754,1750098170778,-490.0,0.00015721,2]
[366173755,1750098170802,-490.0,0.00015721,2]
[366173756,1750098170826,-5993.63,0.00015721,2]
[366173757,1750098170851,-1239.46,0.00015721,2]
[366173758,1750098170875,-490.0,0.00015721,2]
[366173759,1750098170984,-293.24798113,0.00015721,2]
[366173760,1750098191396,202.0,0.00015159,2]
[366173761,1750098252385,268.0,0.00015159,2]
[366173762,1750098264335,500.0,0.00015164,2]
[366173763,1750098278547,16729.75,0.00014906,2]
[366173764,1750098289614,800.0,0.00014068,2]
[366173765,1750098291764,800.0,0.00015438,2]
[366173766,1750098302644,156.18,0.00014889,2]
[366173767,1750098302865,156.18,0.00014893,2]
[366173768,1750098303052,-300.0,0.00015614,2]
[366173769,1750098303086,-250.0,0.00015617,2]
[366173770,1750098303118,-5987.10300007,0.0001562,2]
[366173771,1750098303150,-300.0,0.0001562,2]
[366173772,1750098303184,-1200.0,0.00015621,2]
[366173773,1750098303223,-300.0,0.00015621,2]
[366173774,1750098303261,-5000.0,0.00015622,2]
[366173775,1750098303301,-300.0,0.00015658,2]
[366173776,1750098303334,-250.0,0.00015719,2]
[366173777,1750098303365,-300.0,0.00015719,2]
[366173778,1750098303398,-217.19965227,0.00015719,2]
[366173779,1750098303431,-228.42086118,0.00015719,2]
[366173780,1750098303466,-3273.81,0.0001572,2]
[366173781,1750098303498,-490.0,0.0001572,2]
[366173782,1750098303533,-527.81,0.0001572,2]
[366173783,1750098303565,-507.23,0.0001572,2]
[366173784,1750098303599,-490.0,0.0001572,2]
[366173785,1750098303645,-490.0,0.0001572,2]
[366173786,1750098303679,-651.53,0.0001572,2]
[366173787,1750098303713,-727.37,0.0001572,2]
[366173788,1750098303745,-490.0,0.0001572,2]
[366173789,1750098303778,-551.27,0.0001572,2]
[366173790,1750098303808,-490.0,0.0001572,2]
[366173791,1750098303842,-706.06,0.0001572,2]
[366173792,1750098303874,-769.0,0.0001572,2]
[366173793,1750098303905,-490.0,0.0001572,2]
[366173794,1750098303933,-650.31,0.0001572,2]
[366173795,1750098303964,-490.0,0.0001572,2]
[366173796,1750098303997,-634.35,0.0001572,2]
[366173797,1750098304032,-490.0,0.0001572,2]
[366173798,1750098304063,-490.0,0.0001572,2]
[366173799,1750098304097,-1163.53,0.0001572,2]
[366173800,1750098304132,-545.32,0.0001572,2]
[366173801,1750098304164,-1934.32,0.0001572,2]
[366173802,1750098304196,-185.58017288,0.0001572,2]
[366173803,1750098304228,-490.0,0.0001572,2]
[366173804,1750098304257,-699.49,0.0001572,2]
[366173805,1750098304293,-3184.19,0.0001572,2]
[366173806,1750098304324,-490.0,0.0001572,2]
[366173807,1750098304356,-1504.43,0.0001572,2]
[366173808,1750098304388,-497.07,0.0001572,2]
[366173809,1750098304424,-490.0,0.0001572,2]
[366173810,1750098304456,-955.52,0.0001572,2]
[366173811,1750098304490,-632.45,0.0001572,2]
[366173812,1750098304555,-490.0,0.0001572,2]
[366173813,1750098304612,-1092.84,0.0001572,2]
[366173814,1750098304642,-715.3,0.0001572,2]
[366173815,1750098304702,-490.0,0.0001572,2]
[366173816,1750098304760,-490.0,0.0001572,2]
[366173817,1750098304794,-490.0,0.0001572,2]
[366173818,1750098304834,-5743.89,0.0001572,2]
[366173819,1750098304903,-1359.68,0.0001572,2]
[366173820,1750098304940,-648.18,0.0001572,2]
[366173821,1750098304980,-490.0,0.0001572,2]
[366173822,1750098305023,-490.0,0.0001572,2]
[366173823,1750098305059,-196.75201887,0.00015721,2]
[366173824,1750098305096,-1280.25,0.00015721,2]
[366173825,1750098305161,-898.58,0.00015721,2]
[366173826,1750098305196,-1959.96,0.00015721,2]
[366173827,1750098305233,-490.0,0.00015721,2]
[366173828,1750098305270,-2532.34,0.00015721,2]
[366173829,1750098305309,-198.31086099,0.00015721,2]
[366173830,1750098305344,-820.81,0.00015721,2]
[366173831,1750098305377,-1548.76,0.00015721,2]
[366173832,1750098305413,-600.07551791,0.00015721,2]
[366173833,1750098305449,-9501.83,0.00015721,2]
[366173834,1750098305485,-809.7,0.00015721,2]
[366173835,1750098305519,-490.0,0.00015721,2]
[366173836,1750098305554,-490.0,0.00015721,2]
[366173837,1750098305591,-1023.03,0.00015721,2]
[366173838,1750098305624,-555.86,0.00015721,2]
[366173839,1750098305658,-3634.1,0.00015721,2]
[366173840,1750098305690,-668.7,0.00015721,2]
[366173841,1750098305721,-1327.76,0.00015721,2]
[366173842,1750098305750,-1406.05,0.00015721,2]
[366173843,1750098305781,-921.56,0.00015721,2]
[366173844,1750098305813,-490.0,0.00015721,2]
[366173845,1750098305843,-1239.56,0.00015721,2]
[366173846,1750098305871,-490.0,0.00015721,2]
[366173847,1750098305900,-490.0,0.00015721,2]
[366173848,1750098305929,-891.03,0.00015721,2]
[366173849,1750098305958,-490.0,0.00015721,2]
[366173850,1750098305987,-490.0,0.00015721,2]
[366173851,1750098306019,-490.0,0.00015721,2]
[366173852,1750098306048,-327.08256008,0.00015721,2]
[366173853,1750098306077,-490.0,0.00015721,2]
[366173854,1750098306105,-637.82,0.00015721,2]
[366173855,1750098306135,-6886.18,0.00015721,2]
[366173856,1750098306165,-1043.21,0.00015721,2]
[366173857,1750098306195,-726.21,0.00015721,2]
[366173858,1750098306226,-490.0,0.00015721,2]
[366173859,1750098306258,-3163.63,0.00015721,2]
[366173860,1750098306289,-1810.0,0.00015721,2]
[366173861,1750098306317,-1037.82,0.00015721,2]
[366173862,1750098306344,-1874.14,0.00015721,2]
[366173863,1750098306374,-724.51,0.00015721,2]
[366173864,1750098306401,-1456.49,0.00015721,2]
[366173865,1750098306429,-597.16,0.00015721,2]
[366173866,1750098306458,-490.0,0.00015721,2]
[366173867,1750098306488,-775.84,0.00015721,2]
[366173868,1750098306517,-1435.84,0.00015721,2]
[366173869,1750098306546,-1013.69,0.00015721,2]
[366173870,1750098306576,-957.39,0.00015721,2]
[366173871,1750098306605,-490.0,0.00015721,2]
[366173872,1750098306634,-990.61,0.00015721,2]
[366173873,1750098306666,-1409.85,0.00015721,2]
[366173874,1750098306695,-1081.8,0.00015721,2]
[366173875,1750098306723,-678.41,0.00015721,2]
[366173876,1750098306751,-490.0,0.00015721,2]
[366173877,1750098306783,-4783.36,0.00015721,2]
[366173878,1750098306811,-490.0,0.00015721,2]
[366173879,1750098306840,-2263.25,0.00015721,2]
[366173880,1750098306867,-1070.44,0.00015721,2]
[366173881,1750098306895,-408.67570603,0.00015721,2]
[366173882,1750098306923,-559.14,0.00015721,2]
[366173883,1750098306950,-490.0,0.00015721,2]
[366173884,1750098306982,-490.0,0.00015721,2]
[366173885,1750098307019,-490.0,0.00015721,2]
[366173886,1750098307062,-490.0,0.00015721,2]
[366173887,1750098307098,-978.98,0.00015721,2]
[366173888,1750098307130,-3201.44,0.00015721,2]
[366173889,1750098307170,-1003.63,0.00015721,2]
[366173890,1750098307201,-490.0,0.00015721,2]
[366173891,1750098307232,-490.0,0.00015721,2]
[366173892,1750098307262,-2895.21,0.00015721,2]
[366173893,1750098307295,-587.92,0.00015721,2]
[366173894,1750098307324,-1079.26,0.00015721,2]
[366173895,1750098307352,-490.0,0.00015721,2]
[366173896,1750098307406,-490.0,0.00015721,2]
[366173897,1750098307439,-1117.83,0.00015721,2]
[366173898,1750098307484,-490.0,0.00015721,2]
[366173899,1750098307516,-1095.95,0.00015721,2]
[366173900,1750098307570,-9482.06,0.00015721,2]
[366173901,1750098307605,-490.0,0.00015721,2]
[366173902,1750098307657,-975.23,0.00015721,2]
[366173903,1750098307687,-541.61,0.00015721,2]
[366173904,1750098307718,-490.0,0.00015721,2]
[366173905,1750098307748,-365.14534188,0.00015721,2]
[366173906,1750098307780,-1929.01,0.00015721,2]
[366173907,1750098307812,-490.0,0.00015721,2]
[366173908,1750098307854,-978.37,0.00015721,2]
[366173909,1750098307914,-559.6,0.00015721,2]
[366173910,1750098307947,-490.0,0.00015721,2]
[366173911,1750098307980,-1037.53,0.00015721,2]
[366173912,1750098308012,-854.78,0.00015721,2]
[366173913,1750098308045,-1487.85,0.00015721,2]
[366173914,1750098308076,-966.91,0.00015721,2]
[366173915,1750098308889,-492.49,0.00015721,2]
[366173916,1750098308916,-490.0,0.00015721,2]
[366173917,1750098308942,-490.0,0.00015721,2]
[366173918,1750098308967,-598.25,0.00015721,2]
[366173919,1750098308994,-490.0,0.00015721,2]
[366173920,1750098309023,-500.51,0.00015721,2]
[366173921,1750098309051,-530.05,0.00015721,2]
[366173922,1750098309078,-490.0,0.00015721,2]
[366173923,1750098309103,-490.0,0.00015721,2]
[366173924,1750098309130,-540.18,0.00015721,2]
[366173925,1750098309155,-490.0,0.00015721,2]
[366173926,1750098309180,-669.47,0.00015721,2]
[366173927,1750098309207,-490.0,0.00015721,2]
[366173928,1750098309233,-917.02,0.00015721,2]
[366173929,1750098309259,-1075.05,0.00015721,2]
[366173930,1750098309284,-490.0,0.00015721,2]
[366173931,1750098309311,-490.0,0.00015721,2]
[366173932,1750098309338,-490.0,0.00015721,2]
[366173933,1750098309365,-1521.41,0.00015721,2]
[366173934,1750098309389,-508.55,0.00015721,2]
[366173935,1750098309415,-633.72,0.00015721,2]
[366173936,1750098309439,-490.0,0.00015721,2]
[366173937,1750098309464,-490.0,0.00015721,2]
[366173938,1750098309488,-490.0,0.00015721,2]
[366173939,1750098309512,-821.77,0.00015721,2]
[366173940,1750098309541,-14763.83,0.00015721,2]
[366173941,1750098309567,-490.0,0.00015721,2]
[366173942,1750098309591,-490.0,0.00015721,2]
[366173943,1750098309615,-490.0,0.00015721,2]
[366173944,1750098309640,-3943.24,0.00015721,2]
[366173945,1750098309667,-490.0,0.00015721,2]
[366173946,1750098309693,-604.78,0.00015721,2]
[366173947,1750098309720,-490.0,0.00015721,2]
[366173948,1750098309747,-186.1173365,0.00015721,2]
[366173949,1750098309774,-560.72760715,0.00015721,2]
[366173950,1750098309800,-538.8,0.00015721,2]
[366173951,1750098309824,-765.89936419,0.00015721,2]
[366173952,1750098310231,156.18,0.00014898,2]
[366173953,1750098310280,156.18,0.00014902,2]
[366173954,1750098310327,156.18,0.00014907,2]
[366173955,1750098310393,156.18,0.00014911,2]
[366173956,1750098310534,156.18,0.00014915,2]
[366173957,1750098310592,156.18,0.0001492,2]
[366173958,1750098310697,156.18,0.00014924,2]
[366173959,1750098310841,156.18,0.00014928,2]
[366173960,1750098310890,156.18,0.00014933,2]
[366173961,1750098311059,156.18,0.00014937,2]
[366173962,1750098311183,156.18,0.00014942,2]
[366173963,1750098311251,156.18,0.00014946,2]
[366173964,1750098311300,156.18,0.0001495,2]
[366173965,1750098311473,2.02,0.00014955,2]
[366173966,1750098311499,154.16,0.00014955,2]
[366173967,1750098311805,156.18,0.00014959,2]
[366173968,1750098311887,156.18,0.00014964,2]
[366173969,1750098312553,150.0,0.00015016,2]
[366173970,1750098312899,213.0,0.00015145,2]
[366173971,1750098320953,150.0,0.00015016,2]
[366173972,1750098330794,167.28,0.00015393,2]
[366173973,1750098332084,-1000.0,0.00015621,2]
[366173974,1750098332111,-3752.0,0.00015621,2]
[366173975,1750098341764,351.0,0.00015145,2]
[366173976,1750098349659,320.16,0.00014963,2]
[366173977,1750098444046,500.0,0.00014068,2]
[366173978,1750098451522,788.0,0.000154,5]
[366173980,1750098466195,150.0,0.00014867,2]
[366173981,1750098531775,1508.85269031,0.00024658,120]
[366173992,1750098612114,402.0,0.00015145,2]
[366173998,1750098631330,-350.54836925,0.00015504,2]
[366174000,1750098631385,-724.58802425,0.00015504,2]
[366174197,1750098636541,-1799.18494443,0.00015504,2]
[366174198,1750098636552,-193.58793924,0.0001552,2]
[366174199,1750098636562,-446.84164223,0.00015604,2]
[366174201,1750098637315,-174.7729835,0.00015604,2]
[366174202,1750098637327,-87.65562261,0.0001562,2]
[366174203,1750098637344,-212.34437739,0.0001562,2]
[366174204,1750098637354,-600.0,0.0001562,2]
[366174205,1750098637365,-1200.0,0.0001562,2]
[366174206,1750098637375,-300.0,0.0001562,2]
[366174207,1750098637385,-600.0,0.00015621,4]
[366174208,1750098637395,-300.0,0.00015621,2]
[366174209,1750098637406,-799.89038391,0.00015621,2]
[366174210,1750098637421,-312.49945472,0.00015621,2]
[366174291,1750098638512,-281.78311804,0.00015621,2]
[366174296,1750098638550,-4571.34967549,0.00015621,2]
[366174298,1750098638559,-54854.8433,0.00015621,2]
[366174300,1750098638570,-213.0,0.00015632,2]
[366174302,1750098638579,-600.0,0.00015659,4]
[366174304,1750098638589,-300.0,0.00015659,2]
[366174306,1750098638599,-300.0,0.000157,5]
[366174308,1750098638608,-155.57963117,0.000157,2]
[366174310,1750098638617,-1957.856,0.00015712,2]
[366174312,1750098638627,-207.4,0.00015712,2]
[366174313,1750098638637,-585.64,0.0001572,2]
[366174315,1750098638646,-490.0,0.0001572,2]
[366174317,1750098638655,-490.0,0.0001572,2]
[366174320,1750098638665,-490.0,0.0001572,2]
[366174322,1750098638675,-618.36,0.0001572,2]
[366174323,1750098638684,-744.35,0.0001572,2]
[366174326,1750098638694,-490.0,0.0001572,2]
[366174327,1750098638704,-542.25,0.0001572,2]
[366174329,1750098638714,-1703.92,0.0001572,2]
[366174330,1750098638723,-736.17,0.0001572,2]
[366174331,1750098638733,-523.68,0.0001572,2]
[366174332,1750098638743,-599.28,0.0001572,2]
[366174333,1750098638752,-1121.0,0.0001572,2]
[366174334,1750098638762,-490.0,0.0001572,2]
[366174335,1750098638774,-490.0,0.0001572,2]
[366174336,1750098638785,-852.83,0.0001572,2]
[366174337,1750098638796,-2774.58,0.0001572,2]
[366174338,1750098638806,-500.0,0.0001572,2]
[366174339,1750098638817,-626.17,0.0001572,2]
[366174340,1750098638827,-490.0,0.0001572,2]
[366174341,1750098638837,-490.0,0.0001572,2]
[366174342,1750098638847,-1144.16,0.0001572,2]
[366174343,1750098638858,-490.0,0.0001572,2]
[366174344,1750098638868,-998.19,0.0001572,2]
[366174345,1750098638878,-490.0,0.0001572,2]
[366174346,1750098638888,-695.95,0.0001572,2]
[366174347,1750098638898,-1974.44,0.0001572,2]
[366174348,1750098638908,-624.68,0.0001572,2]
[366174349,1750098638918,-1486.84,0.0001572,2]
[366174350,1750098638928,-555.41,0.0001572,2]
[366174351,1750098638937,-819.16,0.0001572,2]
[366174352,1750098638947,-1068.65,0.0001572,2]
[366174353,1750098638958,-1376.01,0.0001572,2]
[366174354,1750098638968,-573.32,0.0001572,2]
[366174355,1750098638978,-1439.22,0.0001572,2]
[366174356,1750098638987,-724.67,0.0001572,2]
[366174357,1750098638997,-490.0,0.0001572,2]
[366174358,1750098639007,-848.52,0.0001572,2]
[366174359,1750098639017,-2310.41,0.0001572,2]
[366174360,1750098639027,-1030.25,0.0001572,2]
[366174361,1750098639036,-490.0,0.0001572,2]
[366174362,1750098639047,-936.2,0.0001572,2]
[366174363,1750098639058,-1759.32,0.0001572,2]
[366174364,1750098639072,-607.31,0.0001572,2]
[366174365,1750098639082,-490.0,0.0001572,2]
[366174366,1750098639092,-938.19,0.0001572,2]
[366174367,1750098639103,-3778.94,0.0001572,2]
[366174368,1750098639112,-794.2,0.0001572,2]
[366174369,1750098639123,-745.42,0.0001572,2]
[366174370,1750098639132,-490.0,0.0001572,2]
[366174371,1750098639142,-4054.92,0.0001572,2]
[366174372,1750098639152,-1725.24,0.0001572,2]
[366174373,1750098639167,-616.98,0.0001572,2]
[366174374,1750098639176,-490.0,0.0001572,2]
[366174375,1750098639186,-392.50932501,0.0001572,2]
[366174376,1750098639196,-185.66511404,0.0001572,2]
[366174377,1750098639206,-2884.12,0.0001572,2]
[366174378,1750098639216,-490.0,0.0001572,2]
[366174379,1750098639227,-490.0,0.0001572,2]
[366174380,1750098639238,-1425.86,0.0001572,2]
[366174381,1750098639249,-759.69,0.0001572,2]
[366174382,1750098639259,-490.0,0.0001572,2]
[366174383,1750098639269,-490.0,0.0001572,2]
[366174384,1750098639279,-1424.5,0.0001572,2]
[366174385,1750098639289,-490.0,0.0001572,2]
[366174386,1750098639299,-641.57,0.0001572,2]
[366174387,1750098639309,-490.0,0.0001572,2]
[366174388,1750098639319,-1187.81,0.0001572,2]
[366174389,1750098639329,-490.0,0.0001572,2]
[366174390,1750098639339,-1878.29,0.0001572,2]
[366174392,1750098639349,-490.0,0.0001572,2]
[366174394,1750098639359,-653.56,0.0001572,2]
[366174396,1750098639370,-490.0,0.0001572,2]
[366174398,1750098639379,-7208.85,0.0001572,2]
[366174400,1750098639391,-606.94,0.0001572,2]
[366174401,1750098639503,-490.0,0.0001572,2]
[366174402,1750098639513,-530.92,0.0001572,2]
[366174403,1750098639524,-2927.47,0.0001572,2]
[366174404,1750098639534,-14148.67,0.0001572,2]
[366174405,1750098639544,-528.18,0.0001572,2]
[366174406,1750098639555,-843.13,0.0001572,2]
[366174407,1750098639564,-883.16,0.0001572,2]
[366174408,1750098639575,-490.0,0.0001572,2]
[366174409,1750098639584,-2804.92,0.0001572,2]
[366174410,1750098639594,-490.0,0.0001572,2]
[366174411,1750098639604,-1330.79,0.0001572,2]
[366174412,1750098639614,-490.0,0.0001572,2]
[366174413,1750098639624,-6276.11197018,0.0001572,2]
[366174414,1750098639639,-728.21802982,0.0001572,2]
[366174415,1750098639649,-1081.81,0.0001572,2]
[366174416,1750098639659,-490.0,0.0001572,2]
[366174417,1750098639669,-523.93,0.0001572,2]
[366174418,1750098639679,-1841.05,0.0001572,2]
[366174419,1750098639689,-681.5,0.0001572,2]
[366174420,1750098639699,-490.0,0.0001572,2]
[366174421,1750098639708,-490.0,0.0001572,2]
[366174422,1750098639718,-789.15,0.0001572,2]
[366174423,1750098639727,-490.0,0.0001572,2]
[366174424,1750098639737,-490.0,0.0001572,2]
[366174425,1750098639746,-519.27,0.0001572,2]
[366174426,1750098639757,-1007.61,0.0001572,2]
[366174427,1750098639766,-490.0,0.0001572,2]
[366174428,1750098639776,-490.0,0.0001572,2]
[366174429,1750098639787,-490.0,0.0001572,2]
[366174430,1750098639796,-490.0,0.00015721,2]
[366174431,1750098639805,-490.0,0.00015721,2]
[366174432,1750098639814,-490.0,0.00015721,2]
[366174433,1750098639824,-490.0,0.00015721,2]
[366174434,1750098639834,-490.0,0.00015721,2]
[366174435,1750098639843,-490.0,0.00015721,2]
[366174436,1750098639853,-827.97,0.00015721,2]
[366174438,1750098639863,-490.0,0.00015721,2]
[366174440,1750098639872,-200.0,0.00015721,2]
[366174442,1750098639881,-698.0,0.00015721,2]
[366174444,1750098639891,-490.0,0.00015721,2]
[366174445,1750098639900,-602.34,0.00015721,2]
[366174446,1750098639910,-540.44303582,0.00015721,2]
[366174447,1750098639920,-490.0,0.00015721,2]
[366174448,1750098639930,-490.0,0.00015721,2]
[366174449,1750098639940,-490.0,0.00015721,2]
[366174450,1750098639949,-490.0,0.00015721,2]
[366174451,1750098639959,-386.47647736,0.00015721,2]
[366174453,1750098639968,-613.26085668,0.00015721,2]
[366174454,1750098639978,-490.0,0.00015721,2]
[366174456,1750098639987,-2790.29,0.00015721,2]
[366174457,1750098639997,-490.0,0.00015721,2]
[366174458,1750098640007,-4084.56,0.00015721,2]
[366174459,1750098640016,-694.92,0.00015721,2]
[366174460,1750098640026,-565.22,0.00015721,2]
[366174461,1750098640035,-490.0,0.00015721,2]
[366174462,1750098640047,-1000.0,0.00015721,2]
[366174463,1750098640057,-490.0,0.00015721,2]
[366174464,1750098640067,-793.5,0.00015721,2]
[366174465,1750098640078,-747.23,0.00015721,2]
[366174466,1750098640088,-490.0,0.00015721,2]
[366174467,1750098640098,-490.0,0.00015721,2]
[366174468,1750098640108,-583.84,0.00015721,2]
[366174469,1750098640118,-490.0,0.00015721,2]
[366174470,1750098640128,-833.28,0.00015721,2]
[366174471,1750098640137,-9086.97,0.00015721,2]
[366174472,1750098640147,-872.92,0.00015721,2]
[366174473,1750098640159,-529.95,0.00015721,2]
[366174474,1750098640171,-490.0,0.00015721,2]
[366174475,1750098640181,-926.63,0.00015721,2]
[366174476,1750098640191,-1025.84,0.00015721,2]
[366174477,1750098640203,-490.0,0.00015721,2]
[366174478,1750098640213,-651.68,0.00015721,2]
[366174479,1750098640222,-490.0,0.00015721,2]
[366174480,1750098640232,-490.0,0.00015721,2]
[366174481,1750098640242,-517.68,0.00015721,2]
[366174482,1750098640252,-578.65,0.00015721,2]
[366174483,1750098640262,-490.0,0.00015721,2]
[366174484,1750098640273,-490.0,0.00015721,2]
[366174485,1750098640283,-3068.05,0.00015721,2]
[366174486,1750098640293,-490.0,0.00015721,2]
[366174487,1750098640303,-177.5510832,0.00015721,2]
[366174488,1750098640312,-1458.01,0.00015721,2]
[366174489,1750098640323,-490.0,0.00015721,2]
[366174490,1750098640333,-490.0,0.00015721,2]
[366174491,1750098640343,-490.0,0.00015721,2]
[366174492,1750098640353,-787.53,0.00015721,2]
[366174493,1750098640363,-1077.12,0.00015721,2]
[366174494,1750098640372,-490.0,0.00015721,2]
[366174495,1750098640382,-490.0,0.00015721,2]
[366174496,1750098640391,-592.18,0.00015721,2]
[366174497,1750098640401,-490.0,0.00015721,2]
[366174498,1750098640410,-1003.24,0.00015721,2]
[366174499,1750098640420,-585.63,0.00015721,2]
[366174500,1750098640429,-490.0,0.00015721,2]
[366174501,1750098640439,-490.0,0.00015721,2]
[366174502,1750098640448,-490.0,0.00015721,2]
[366174503,1750098640459,-8412.1,0.00015721,2]
[366174504,1750098640468,-490.0,0.00015721,2]
[366174505,1750098640477,-490.0,0.00015721,2]
[366174506,1750098640487,-539.86,0.00015721,2]
[366174507,1750098640497,-490.0,0.00015721,2]
[366174508,1750098640506,-783.13,0.00015721,2]
[366174509,1750098640517,-490.0,0.00015721,2]
[366174510,1750098640526,-1676.86,0.00015721,2]
[366174511,1750098640535,-490.0,0.00015721,2]
[366174512,1750098640545,-490.0,0.00015721,2]
[366174513,1750098640554,-490.0,0.00015721,2]
[366174514,1750098640564,-1197.55,0.00015721,2]
[366174515,1750098640574,-562.33,0.00015721,2]
[366174516,1750098640583,-937.33,0.00015721,2]
[366174517,1750098640593,-490.0,0.00015721,2]
[366174518,1750098640603,-535.13,0.00015721,2]
[366174519,1750098640613,-490.0,0.00015721,2]
[366174520,1750098640623,-490.0,0.00015721,2]
[366174521,1750098640633,-490.0,0.00015721,2]
[366174522,1750098640643,-741.83,0.00015721,2]
[366174523,1750098640653,-1010.19,0.00015721,2]
[366174524,1750098640663,-1316.94,0.00015721,2]
[366174525,1750098640673,-490.0,0.00015721,2]
[366174526,1750098640683,-717.02,0.00015721,2]
[366174527,1750098640694,-913.99,0.00015721,2]
[366174528,1750098640703,-490.0,0.00015721,2]
[366174529,1750098640713,-133.89673238,0.00015721,2]
[366174530,1750098640765,-356.10326762,0.00015721,2]
[366174531,1750098640775,-582.21,0.00015721,2]
[366174532,1750098640784,-911.84673238,0.00015721,2]
[366174533,1750098641078,-490.0,0.0001572,2]
[366174534,1750098641089,-490.0,0.0001572,2]
[366174535,1750098641098,-663.48326762,0.00015721,2]
[366174536,1750098641108,-490.0,0.00015721,2]
[366174537,1750098641121,-549.24,0.00015721,2]
[366174538,1750098641130,-38.10704168,0.00015721,2]
[366174539,1750098641143,-451.89295832,0.00015721,2]
[366174540,1750098641153,-490.0,0.00015721,2]
[366174541,1750098641169,-490.0,0.00015721,2]
[366174542,1750098641178,-509.9448603,0.00015721,2]
[366174543,1750098641188,-566.99,0.00015721,2]
[366174544,1750098641198,-980.41,0.00015721,2]
[366174545,1750098641209,-490.0,0.00015721,2]